bitfinex/quotes_SOLUSD_20250814
["timestamp","ask_amount","ask_price","bid_price","bid_amount"]
[1755148528850,0.71,208.32,208.24,1.915754]
[1755148529030,15.10621557,208.31,208.24,1.915754]
[1755148529355,0.71,208.3,208.24,1.915754]
[1755148529561,0.71,208.3,208.2,64.42]
[1755148529929,0.06,208.33,208.24,15.10621557]
[1755148530155,0.06,208.35,208.27,26.0]
[1755148530335,0.06,208.35,208.28,38.66]
[1755148530535,0.71,208.39,208.28,38.66]
[1755148530835,15.10621557,208.38,208.28,38.66]
[1755148531043,0.71,208.39,208.29,1.915846]
[1755148531476,41.10621557,208.38,208.29,1.915846]
[1755148531753,15.10621557,208.36,208.29,1.915846]
[1755148532058,29.32617563,208.31,208.3,38.6]
[1755148532256,14.91996006,208.31,208.3,37.88]
[1755148532560,14.91996006,208.31,208.3,37.16]
[1755148532740,14.91996006,208.31,208.3,36.44]
[1755148533061,0.7,208.31,208.3,36.44]
[1755148533246,15.10621557,208.33,208.3,36.44]
[1755148533564,41.10621557,208.31,208.3,36.44]
[1755148533759,15.10621557,208.31,208.3,36.44]
[1755148533935,0.06,208.35,208.3,37.14]
[1755148534458,0.06,208.35,208.31,0.7]
[1755148534647,15.10621557,208.33,208.3,36.44]
[1755148534842,0.7,208.32,208.3,36.44]
[1755148535042,41.80621299,208.31,208.3,36.44]
[1755148535244,41.80621299,208.31,208.19,14.377111]
[1755148535245,56.02617305,208.31,208.19,14.377111]
[1755148535564,15.10621557,208.27,208.19,14.377111]
[1755148535747,0.7,208.3,208.18,0.7]
[1755148535947,15.10621557,208.29,208.18,0.7]
[1755148536269,15.10621557,208.27,208.19,14.377112]
[1755148536436,15.10621557,208.27,208.09,4.50722317]
[1755148536437,15.10621557,208.3,208.2,38.7]
[1755148536632,15.10621557,208.3,208.21,39.4]
[1755148536836,15.10621557,208.31,208.22,39.4]
[1755148537047,0.06,208.31,208.23,0.7]
[1755148538460,0.06,208.31,208.25,26.0]
[1755148538638,0.06,208.31,208.26,0.7]
[1755148539257,0.06,208.31,208.27,15.070913]
[1755148539470,0.06,208.31,208.28,0.7]
[1755148539773,0.06,208.35,208.3,26.0]
[1755148539938,0.06,208.35,208.31,38.62]
[1755148540247,0.2,208.44,208.34,26.0]
[1755148540453,0.2,208.44,208.35,0.7]
[1755148540649,15.30621557,208.44,208.31,65.32]
[1755148540868,16.00621557,208.44,208.31,65.32]
[1755148541067,16.00621557,208.44,208.32,0.7]
[1755148541652,42.00621557,208.44,208.32,0.7]
[1755148541855,41.30621557,208.44,208.32,0.7]
[1755148542164,42.00621557,208.44,208.32,0.7]
[1755148542343,15.30621557,208.41,208.32,0.7]
[1755148542547,0.2,208.41,208.32,0.7]
[1755148543462,0.2,208.41,208.33,14.366784]
[1755148544169,15.30621557,208.41,208.33,14.366784]
[1755148544471,16.00621557,208.41,208.31,38.62]
[1755148544666,15.10621557,208.39,208.32,14.368849]
[1755148544866,15.10621557,208.37,208.31,38.62]
[1755148545054,15.10621557,208.35,208.32,69.0]
[1755148545441,0.7,208.35,208.32,69.0]
[1755148545649,15.10621557,208.37,208.32,69.0]
[1755148545845,15.30621557,208.41,208.32,69.7]
[1755148546265,15.10621557,208.4,208.32,69.7]
[1755148546479,15.10621557,208.4,208.33,14.367472]
[1755148546856,0.2,208.41,208.33,14.367472]
[1755148547057,0.2,208.41,208.34,0.7]
[1755148548858,0.2,208.41,208.36,26.0]
[1755148549164,0.2,208.41,208.37,39.12]
[1755148549367,0.2,208.41,208.38,0.7]
[1755148549574,0.2,208.41,208.39,0.7]
[1755148549772,0.2,208.41,208.4,0.7]
[1755148550073,0.2,208.44,208.4,0.7]
[1755148550642,0.2,208.44,208.41,0.7]
[1755148550861,0.06,208.45,208.42,0.7]
[1755148551070,0.06,208.45,208.43,39.06]
[1755148551245,0.06,208.45,208.44,0.7]
[1755148551445,0.06,208.45,208.43,38.36]
[1755148552477,0.7,208.44,208.35,0.7]
[1755148552660,0.7,208.44,208.36,38.36]
[1755148552861,0.06,208.45,208.36,38.36]
[1755148553046,0.06,208.45,208.37,0.7]
[1755148553765,0.06,208.45,208.39,26.0]
[1755148553960,0.06,208.45,208.4,0.7]
[1755148554162,0.06,208.45,208.41,0.7]
[1755148554361,0.06,208.45,208.42,38.34]
[1755148554563,0.06,208.45,208.43,38.34]
[1755148554753,0.06,208.45,208.44,38.32]
[1755148554951,0.06,208.45,208.44,107.32]
[1755148555373,0.06,208.46,208.44,108.02]
[1755148555556,0.06,208.48,208.47,26.0]
[1755148555749,0.06,208.52,208.47,26.7]
[1755148555964,0.06,208.52,208.48,0.7]
[1755148556278,0.06,208.52,208.49,39.02]
[1755148556852,0.06,208.52,208.5,0.7]
[1755148557372,0.06,208.52,208.51,0.7]
[1755148558663,0.06,208.52,208.49,38.32]
[1755148558863,0.06,208.52,208.5,0.7]
[1755148559072,0.06,208.52,208.51,0.7]
[1755148559276,0.06,208.52,208.5,14.355784]
[1755148560084,0.06,208.52,208.49,38.32]
[1755148560383,0.06,208.52,208.51,26.0]
[1755148560587,0.06,208.52,208.51,26.65]
[1755148562482,0.06,208.52,208.51,28.564105]
[1755148563662,0.06,208.52,208.51,27.914105]
[1755148564479,0.06,208.52,208.51,1.914105]
[1755148564676,15.10621557,208.51,208.44,0.65]
[1755148564857,0.06,208.52,208.46,4.322464]
[1755148565062,0.06,208.52,208.47,68.96]
[1755148565562,0.68,208.51,208.47,68.96]
[1755148565760,0.06,208.52,208.47,68.96]
[1755148565986,0.68,208.51,208.47,68.96]
[1755148566188,0.68,208.51,208.15,23.87103475]
[1755148566189,26.0,208.41,208.15,23.87103475]
[1755148566363,15.10621557,208.35,208.24,14.374356]
[1755148566563,15.10621557,208.33,208.32,38.9]
[1755148566757,0.68,208.36,208.25,0.68]
[1755148566980,15.10621557,208.34,208.25,0.68]
[1755148567180,15.78621557,208.33,208.32,33.94]
[1755148567993,15.10621557,208.33,208.32,33.94]
[1755148571485,15.10621557,208.36,208.32,33.94]
[1755148571997,15.78621557,208.41,208.32,33.94]
[1755148572205,15.10621557,208.37,208.32,34.59]
[1755148573084,0.68,208.41,208.32,33.94]
[1755148573277,15.10621557,208.42,208.33,0.65]
[1755148573484,15.10621557,208.43,208.33,0.65]
[1755148574372,4.78621544,208.47,208.33,0.65]
[1755148574586,15.10621557,208.46,208.33,0.65]
[1755148574885,15.10621557,208.47,208.33,0.65]
[1755148575098,15.10621557,208.47,208.34,68.96]
[1755148575298,41.10621557,208.47,208.35,0.65]
[1755148576899,0.68,208.46,208.35,0.65]
[1755148577207,15.10621557,208.37,208.34,68.96]
[1755148577384,15.10621557,208.37,208.36,38.68]
[1755148577591,15.10621557,208.38,208.36,38.68]
[1755148577898,14.89996006,208.37,208.36,38.68]
[1755148578072,30.00617563,208.37,208.36,38.68]
[1755148578491,15.10621557,208.37,208.36,38.68]
[1755148580890,15.10621557,208.37,208.36,38.71]
[1755148581294,15.10621557,208.43,208.36,38.71]
[1755148582711,93.468161,208.51,208.36,64.71]
[1755148582911,4.87981494,208.52,208.37,0.65]
[1755148583075,5.55981494,208.52,208.39,26.0]
[1755148583280,15.10621557,208.51,208.4,0.65]
[1755148583583,15.10621557,208.51,208.41,38.52]
[1755148583985,15.10621557,208.51,208.42,0.65]
[1755148584188,0.06,208.48,208.42,0.65]
[1755148585092,0.06,208.48,208.43,68.96]
[1755148585284,0.06,208.48,208.44,0.65]
[1755148585488,0.06,208.48,208.45,0.65]
[1755148585801,0.06,208.48,208.46,39.07]
[1755148586000,0.06,208.52,208.47,0.65]
[1755148586883,0.06,208.52,208.49,26.0]
[1755148587084,0.06,208.52,208.5,0.65]
[1755148587301,0.06,208.52,208.51,39.03]
[1755148590711,0.06,208.52,208.51,0.65]
[1755148590895,0.06,208.52,208.51,38.93]
[1755148591791,0.06,208.52,208.51,38.89]
[1755148592318,0.06,208.52,208.51,0.71]
[1755148592493,0.06,208.52,208.51,38.91]
[1755148593118,0.06,208.52,208.51,38.2]
[1755148593298,0.06,208.52,208.51,38.14]
[1755148593498,0.06,208.52,208.49,0.71]
[1755148593699,0.06,208.52,208.5,38.14]
[1755148593913,0.06,208.52,208.5,38.85]
[1755148594117,0.06,208.52,208.5,38.14]
[1755148594307,0.06,208.52,208.46,0.71]
[1755148594606,0.06,208.52,208.47,26.0]
[1755148594811,0.06,208.52,208.48,38.1]
[1755148595023,15.75621557,208.51,208.49,68.96]
[1755148595319,15.10621557,208.49,208.43,0.71]
[1755148595518,15.10621557,208.49,208.4,15.070595]
[1755148595829,15.10621557,208.49,208.44,34.48]
[1755148595995,15.10621557,208.47,208.44,34.48]
[1755148596195,15.10621557,208.47,208.4,0.71]
[1755148596496,29.32617563,208.47,208.35,4.21874905]
[1755148596721,14.21996006,208.45,208.36,0.74]
[1755148597028,29.32617563,208.44,208.37,38.08]
[1755148597217,15.10621557,208.44,208.36,0.74]
[1755148597410,14.21996006,208.43,208.36,0.03]
[1755148597613,15.10621557,208.39,208.36,0.03]
[1755148597803,15.10621557,208.37,208.36,0.03]
[1755148598003,15.10621557,208.37,208.36,38.11]
[1755148598215,29.97617563,208.37,208.36,0.03]
[1755148598399,29.97617563,208.37,208.3,0.03]
[1755148598602,15.10621557,208.33,208.32,38.06]
[1755148599042,15.10621557,208.32,208.3,0.03]
[1755148599200,15.10621557,208.37,208.32,38.06]
[1755148599601,15.10621557,208.38,208.32,38.06]
[1755148599818,15.10621557,208.38,208.31,0.74]
[1755148600098,15.10621557,208.35,208.32,38.04]
[1755148600316,15.10621557,208.35,208.31,0.03]
[1755148600736,14.21996006,208.39,208.32,38.04]
[1755148600938,15.10621557,208.38,208.32,38.04]
[1755148601241,15.10621557,208.37,208.31,0.74]
[1755148601738,15.10621557,208.37,208.32,38.02]
[1755148602416,15.10621557,208.38,208.32,38.73]
[1755148602638,29.32617563,208.38,208.32,38.73]
[1755148602828,29.32617563,208.38,208.32,0.71]
[1755148602829,0.06,208.37,208.32,0.71]
[1755148603126,0.06,208.37,208.33,37.96]
[1755148604342,0.06,208.37,208.31,0.03]
[1755148604722,0.06,208.37,208.32,37.88]
[1755148604917,0.06,208.37,208.33,34.48]
[1755148605238,0.06,208.37,208.33,68.96]
[1755148605438,0.06,208.37,208.34,0.71]
[1755148605656,0.06,208.37,208.35,0.71]
[1755148605819,0.06,208.37,208.33,68.96]
[1755148606019,0.06,208.37,208.36,0.71]
[1755148607125,0.06,208.37,208.36,38.53]
[1755148607651,0.06,208.37,208.36,0.71]
[1755148607821,0.06,208.37,208.36,38.51]
[1755148608232,0.06,208.37,208.36,0.71]
[1755148609443,0.06,208.37,208.36,38.45]
[1755148611660,15.10621557,208.46,208.39,26.0]
[1755148611848,79.1,208.47,208.4,0.71]
[1755148612039,15.10621557,208.49,208.4,0.71]
[1755148612957,0.06,208.52,208.4,0.71]
[1755148615155,0.06,208.52,208.41,68.96]
[1755148615334,0.06,208.52,208.42,0.71]
[1755148615534,0.06,208.52,208.43,37.6]
[1755148615744,0.06,208.52,208.44,0.71]
[1755148616555,0.06,208.52,208.44,26.71]
[1755148616755,0.06,208.52,208.45,37.5]
[1755148616967,0.06,208.52,208.46,0.71]
[1755148617540,15.10621557,208.5,208.42,0.71]
[1755148617852,0.65,208.51,208.44,26.0]
[1755148618362,0.65,208.51,208.42,26.71]
[1755148618534,0.65,208.51,208.43,37.5]
[1755148619166,0.65,208.51,208.44,26.0]
[1755148619368,15.10621557,208.5,208.44,37.5]
[1755148619662,15.16621557,208.52,208.45,0.71]
[1755148619966,0.06,208.52,208.45,0.71]
[1755148621241,0.06,208.52,208.47,26.0]
[1755148621568,0.06,208.52,208.48,0.67]
[1755148621769,0.06,208.52,208.49,0.67]
[1755148621940,0.06,208.52,208.5,37.42]
[1755148622649,0.06,208.52,208.5,38.09]
[1755148624563,0.06,208.52,208.51,0.67]
[1755148624947,0.06,208.52,208.51,69.63]
[1755148625364,0.06,208.52,208.51,106.93]
[1755148625762,0.06,208.52,208.51,69.63]
[1755148626073,0.06,208.52,208.51,72.43]
[1755148626485,0.06,208.52,208.51,37.95]
[1755148629458,0.06,208.55,208.51,37.95]
[1755148629671,0.06,208.55,208.52,0.67]
[1755148631083,0.06,208.55,208.54,26.0]
[1755148631451,0.06,208.57,208.54,26.67]
[1755148631754,0.2,208.62,208.58,26.0]
[1755148631974,0.2,208.66,208.55,43.89018934]
[1755148631975,0.2,208.66,208.62,26.0]
[1755148632171,0.06,208.73,208.66,26.0]
[1755148632382,0.06,208.73,208.67,37.79]
[1755148632570,0.06,208.73,208.68,0.67]
[1755148632773,0.06,208.73,208.69,0.67]
[1755148632959,0.06,208.73,208.67,37.12]
[1755148633155,0.06,208.73,208.68,37.1]
[1755148633382,0.06,208.73,208.69,37.1]
[1755148633570,0.06,208.73,208.69,37.77]
[1755148633973,0.06,208.73,208.69,0.67]
[1755148634375,0.06,208.73,208.69,37.75]
[1755148634569,0.06,208.73,208.65,2.582457]
[1755148634764,0.06,208.73,208.66,63.08]
[1755148634970,0.06,208.73,208.67,106.0]
[1755148635174,0.06,208.73,208.67,106.67]
[1755148635690,0.06,208.73,208.68,37.06]
[1755148637490,15.10621557,208.68,208.64,1.912549]
[1755148637676,10.63436106,208.67,208.65,37.02]
[1755148637984,10.63436106,208.66,208.58,1.913097]
[1755148638173,41.10621557,208.71,208.58,1.913097]
[1755148638174,0.69,208.65,208.59,37.02]
[1755148638378,15.10621557,208.67,208.6,37.02]
[1755148638759,9.94436106,208.63,208.55,0.67]
[1755148638987,25.05057663,208.65,208.55,0.67]
[1755148639160,25.05057663,208.65,208.56,37.08]
[1755148639478,15.10621557,208.65,208.56,37.08]
[1755148639780,26.0,208.68,208.59,26.0]
[1755148639781,15.10621557,208.68,208.59,26.0]
[1755148639957,15.10621557,208.68,208.6,0.67]
[1755148640162,15.10621557,208.68,208.61,37.1]
[1755148641068,15.10621557,208.68,208.64,26.0]
[1755148641268,0.06,208.7,208.64,26.0]
[1755148641787,0.06,208.7,208.65,0.67]
[1755148641988,0.06,208.7,208.66,37.73]
[1755148642191,0.06,208.7,208.66,37.06]
[1755148642489,0.06,208.7,208.67,0.67]
[1755148642687,0.06,208.7,208.58,26.0]
[1755148642871,0.06,208.7,208.68,0.67]
[1755148643185,0.06,208.73,208.72,26.0]
[1755148643487,0.06,208.73,208.72,26.67]
[1755148643869,0.06,208.73,208.72,0.67]
[1755148644109,0.06,208.73,208.72,15.00726]
[1755148644477,0.06,208.73,208.72,52.12726]
[1755148644790,0.06,208.73,208.72,52.10726]
[1755148644991,0.06,208.73,208.72,106.65]
[1755148645676,0.06,208.75,208.74,26.0]
[1755148645990,0.06,208.75,208.74,26.67]
[1755148646184,0.06,208.77,208.74,26.67]
[1755148646383,0.06,208.77,208.75,26.67]
[1755148646694,0.1,208.91,208.79,26.0]
[1755148646870,0.1,208.91,208.76,37.77]
[1755148646871,0.1,208.91,208.83,26.0]
[1755148647064,0.1,208.91,208.84,37.1]
[1755148647464,0.1,208.91,208.83,0.67]
[1755148647672,15.25621557,208.9,208.84,37.08]
[1755148647883,15.25621557,208.9,208.71,10.0]
[1755148647884,9.94436106,208.88,208.75,0.67]
[1755148648091,9.94436106,208.83,208.76,37.1]
[1755148648286,0.15,208.82,208.72,0.67]
[1755148648489,15.10621557,208.8,208.72,0.67]
[1755148648668,10.09436106,208.79,208.73,37.1]
[1755148648867,10.09436106,208.79,208.69,0.67]
[1755148649068,0.15,208.79,208.73,26.0]
[1755148649266,0.15,208.79,208.74,37.08]
[1755148650208,10.09436106,208.78,208.69,14.340687]
[1755148650383,9.94436106,208.77,208.7,37.08]
[1755148650584,9.94436106,208.77,208.67,14.341372]
[1755148650776,9.94436106,208.77,208.68,37.06]
[1755148651193,10.09436106,208.78,208.68,37.06]
[1755148651369,10.09436106,208.78,208.68,63.06]
[1755148651565,15.10621557,208.82,208.71,26.0]
[1755148651869,15.82621557,208.82,208.71,26.0]
[1755148652070,15.82621557,208.82,208.72,0.68]
[1755148652881,15.82621557,208.82,208.73,37.04]
[1755148653090,15.10621557,208.82,208.74,0.68]
[1755148653682,15.10621557,208.84,208.74,0.68]
[1755148653876,15.10621557,208.84,208.75,26.0]
[1755148654193,15.10621557,208.84,208.76,36.98]
[1755148654379,0.72,208.85,208.76,37.66]
[1755148654578,15.10621557,208.87,208.79,26.0]
[1755148655077,15.10621557,208.87,208.8,68.84]
[1755148655284,0.72,208.88,208.8,68.84]
[1755148655498,15.10621557,208.9,208.81,0.68]
[1755148655801,0.82,208.91,208.82,36.98]
[1755148656001,0.82,208.91,208.83,0.68]
[1755148656779,0.1,208.91,208.83,0.68]
[1755148656978,0.1,208.91,208.83,10.624362]
[1755148657708,0.1,208.91,208.84,37.64]
[1755148657908,0.1,208.91,208.85,0.68]
[1755148658995,0.1,208.91,208.87,26.0]
[1755148659208,0.1,208.91,208.87,26.68]
[1755148659380,0.1,208.91,208.87,26.0]
[1755148659576,0.1,208.91,208.88,0.68]
[1755148661383,0.1,208.91,208.89,36.9]
[1755148662988,0.1,208.91,208.89,37.58]
[1755148664592,0.1,208.91,208.89,36.9]
[1755148664787,0.1,208.91,208.87,26.0]
[1755148664987,0.72,208.9,208.88,68.8]
[1755148665189,15.82621557,208.9,208.89,36.9]
[1755148665700,25.77057663,208.9,208.89,36.9]
[1755148666092,15.82621557,208.9,208.89,36.9]
[1755148666917,0.1,208.91,208.89,36.9]
[1755148667683,15.10621557,208.9,208.89,36.9]
[1755148667919,15.82621557,208.9,208.89,36.9]
[1755148668881,15.20621557,208.91,208.89,36.9]
[1755148669100,0.1,208.91,208.89,36.9]
[1755148669691,0.1,208.91,208.89,37.58]
[1755148670495,0.1,208.91,208.9,0.68]
[1755148671122,0.1,208.91,208.9,37.58]
[1755148671423,0.1,208.91,208.9,36.9]
[1755148674009,0.1,208.91,208.9,36.88]
[1755148674395,0.1,208.91,208.74,10.0]
[1755148674596,0.1,208.91,208.82,0.68]
[1755148674597,15.10621557,208.9,208.82,0.68]
[1755148674807,15.82621557,208.9,208.83,36.88]
[1755148675012,15.82621557,208.9,208.84,68.8]
[1755148675013,15.10621557,208.88,208.84,68.8]
[1755148675198,15.22621557,208.88,208.84,68.8]
[1755148675517,0.12,208.87,208.84,68.8]
[1755148675697,15.10621557,208.88,208.84,68.8]
[1755148675900,15.22621557,208.88,208.84,68.8]
[1755148676406,15.22621557,208.88,208.84,34.4]
[1755148677706,15.22621557,208.88,208.74,19.39213114]
[1755148677707,0.12,208.87,208.74,4.28591557]
[1755148678038,15.10621557,208.84,208.75,37.56]
[1755148678195,25.17057663,208.84,208.75,0.68]
[1755148678535,15.22621557,208.84,208.75,0.68]
[1755148678703,0.12,208.83,208.76,36.88]
[1755148679305,25.17057663,208.86,208.78,14.333835]
[1755148679506,15.10621557,208.85,208.78,14.333835]
[1755148679703,15.10621557,208.85,208.77,36.88]
[1755148679997,9.94436106,208.85,208.77,36.88]
[1755148680314,15.10621557,208.83,208.77,36.88]
[1755148680494,0.71,208.88,208.78,0.65]
[1755148680825,15.10621557,208.85,208.78,0.65]
[1755148681821,15.10621557,208.89,208.78,0.65]
[1755148682318,15.10621557,208.8,208.72,26.0]
[1755148682630,0.71,208.83,208.73,37.53]
[1755148682805,15.10621557,208.85,208.74,0.65]
[1755148683623,15.10621557,208.86,208.76,26.0]
[1755148683830,15.10621557,208.86,208.77,0.65]
[1755148684028,15.10621557,208.86,208.78,36.88]
[1755148684410,15.10621557,208.84,208.78,36.88]
[1755148684624,15.10621557,208.84,208.79,36.88]
[1755148685031,15.10621557,208.84,208.8,68.84]
[1755148686013,79.1,208.85,208.8,69.49]
[1755148686649,79.1,208.85,208.81,0.65]
[1755148687022,79.1,208.85,208.82,0.65]
[1755148687328,15.81621557,208.87,208.77,0.65]
[1755148687534,15.10621557,208.86,208.78,36.88]
[1755148687917,15.10621557,208.86,208.79,36.88]
[1755148688116,15.10621557,208.86,208.8,36.88]
[1755148688506,10.65436106,208.87,208.81,36.88]
[1755148688712,0.71,208.87,208.81,36.88]
[1755148690321,0.71,208.87,208.74,0.65]
[1755148690322,9.94436106,208.82,208.74,0.65]
[1755148690524,10.65436106,208.82,208.74,0.65]
[1755148690726,10.65436106,208.82,208.75,36.88]
[1755148691329,10.65436106,208.82,208.76,36.88]
[1755148691635,10.65436106,208.82,208.77,36.88]
[1755148691843,9.94436106,208.82,208.77,36.88]
[1755148692016,15.10621557,208.8,208.77,36.88]
[1755148692216,15.10621557,208.8,208.74,0.68]
[1755148693018,25.05057663,208.8,208.74,0.03]
[1755148693212,15.10621557,208.78,208.75,36.88]
[1755148693426,15.10621557,208.78,208.74,0.03]
[1755148693620,15.10621557,208.78,208.75,36.88]
[1755148694923,15.10621557,208.78,208.76,34.42]
[1755148695227,15.10621557,208.78,208.76,68.84]
[1755148695633,15.10621557,208.78,208.77,36.88]
[1755148695837,15.10621557,208.78,208.76,68.84]
[1755148696038,15.10621557,208.78,208.77,36.88]
[1755148696727,25.76057663,208.82,208.77,36.88]
[1755148696922,15.81621557,208.82,208.77,36.88]
[1755148697143,25.76057663,208.82,208.77,36.88]
[1755148697647,15.10621557,208.8,208.77,36.88]
[1755148701638,79.1,208.81,208.78,0.65]
[1755148701821,15.10621557,208.86,208.79,0.65]
[1755148703252,79.1,208.87,208.79,0.65]
[1755148703828,79.1,208.87,208.8,26.0]
[1755148704049,79.1,208.87,208.81,0.65]
[1755148704253,79.1,208.87,208.82,36.86]
[1755148704636,79.1,208.87,208.83,0.65]
[1755148704938,79.1,208.87,208.84,68.84]
[1755148705241,79.1,208.87,208.84,69.49]
[1755148705423,0.06,208.88,208.85,0.65]
[1755148705624,0.06,208.88,208.86,37.51]
[1755148705837,0.06,208.88,208.87,0.65]
[1755148706454,15.10621557,208.87,208.72,0.03]
[1755148706754,15.10621557,208.83,208.75,37.49]
[1755148707250,0.06,208.88,208.77,15.10621557]
[1755148707558,0.06,208.93,208.84,26.0]
[1755148707849,0.06,208.93,208.88,26.0]
[1755148708060,0.06,208.93,208.89,36.84]
[1755148708355,0.06,208.93,208.85,0.65]
[1755148708647,0.06,208.93,208.86,36.84]
[1755148708851,0.06,208.93,208.87,0.65]
[1755148709431,0.06,208.93,208.84,26.0]
[1755148709432,15.10621557,208.9,208.74,0.03]
[1755148709638,25.05057663,208.9,208.75,0.65]
[1755148709846,25.05057663,208.9,208.8,1.911087]
[1755148710053,25.05057663,208.9,208.81,37.49]
[1755148710434,15.10621557,208.88,208.81,0.65]
[1755148710634,15.10621557,208.89,208.82,36.84]
[1755148711158,25.73057663,208.89,208.77,14.33315]
[1755148711329,0.1,208.91,208.78,37.51]
[1755148711330,15.10621557,208.86,208.78,37.51]
[1755148712158,25.05057663,208.87,208.78,37.51]
[1755148712458,15.10621557,208.87,208.78,37.51]
[1755148712659,15.10621557,208.87,208.79,0.67]
[1755148714133,15.10621557,208.87,208.8,36.84]
[1755148714666,25.05057663,208.85,208.77,0.03]
[1755148714879,25.05057663,208.82,208.77,0.03]
[1755148715045,25.73057663,208.82,208.78,105.68]
[1755148715559,15.10621557,208.84,208.78,105.68]
[1755148715743,15.10621557,208.84,208.78,106.35]
[1755148717866,15.10621557,208.84,208.78,105.68]
[1755148718064,15.10621557,208.82,208.78,105.68]
[1755148718439,15.10621557,208.85,208.78,105.68]
[1755148718945,9.94436106,208.85,208.78,105.68]
[1755148719352,25.05057663,208.86,208.78,105.68]
[1755148719759,15.10621557,208.83,208.78,105.68]
[1755148720362,15.10621557,208.83,208.78,106.35]
[1755148721281,15.10621557,208.87,208.79,0.67]
[1755148724573,15.10621557,208.89,208.79,0.67]
[1755148725274,25.05057663,208.89,208.79,0.67]
[1755148725453,9.94436106,208.86,208.79,0.67]
[1755148725649,9.94436106,208.83,208.78,68.84]
[1755148725990,15.10621557,208.8,208.79,36.82]
[1755148726266,0.68,208.82,208.79,36.82]
[1755148726267,15.10621557,208.83,208.79,36.82]
[1755148726472,79.1,208.82,208.79,36.82]
[1755148727748,25.73057663,208.81,208.8,36.8]
[1755148728264,25.73057663,208.81,208.78,68.84]
[1755148728465,25.05057663,208.79,208.78,68.84]
[1755148728651,25.73057663,208.79,208.78,105.64]
[1755148731069,25.73057663,208.79,208.78,68.84]
[1755148731272,25.73057663,208.79,208.78,105.64]
[1755148735578,15.78621557,208.79,208.78,105.64]
[1755148735780,25.73057663,208.79,208.78,105.64]
[1755148736151,25.05057663,208.79,208.78,105.64]
[1755148736594,25.05057663,208.79,208.78,105.67]
[1755148737194,51.05057663,208.79,208.78,105.67]
[1755148738195,51.73057663,208.79,208.78,105.67]
[1755148738994,51.73057663,208.79,208.78,105.65]
[1755148739292,148.50621557,208.78,208.77,0.03]
[1755148739494,51.05057663,208.76,208.75,34.42]
[1755148739776,51.73057663,208.76,208.75,105.62]
[1755148740266,61.67493769,208.76,208.75,68.84]
[1755148740462,41.10621557,208.73,208.72,0.03]
[1755148740662,51.73057663,208.73,208.72,36.81]
[1755148741352,66.08086663,208.73,208.72,36.81]